[Event "Fast Chess"]
[Site "ChessKid.com"]
[Date "2020.05.13"]
[Round "3"]
[White "Georgiev, Maximilian"]
[Black "Sasse, Gabriel"]
[Result "1-0"]
[ECO "C50"]
[WhiteElo "1170"]
[BlackElo "1323"]
[Annotator "Fehlerhafte Ottakringer Falle"]
[PlyCount "57"]
[EventDate "2020.??.??"]
[TimeControl "600"]
[WhiteClock "0:08:07"]
[BlackClock "0:08:32"]

1. e4 {[%emt 0:00:00]} e5 {[%emt 0:00:01]} 2. Nf3 {[%emt 0:00:01]} Nc6 {
[%emt 0:00:00]} 3. Bc4 {[%emt 0:00:01]} Bc5 {[%emt 0:00:01]} 4. O-O {[%emt 0:
00:01]} h6 {[%emt 0:00:01]} 5. Nc3 {[%emt 0:00:02]} Nf6 {[%emt 0:00:01]} 6.
Nxe5 {[%emt 0:00:04]} Nxe5 {[%emt 0:00:02]} 7. d4 $4 {[%emt 0:00:01]} Bb6 {
[%emt 0:00:04]} 8. dxe5 {[%emt 0:00:01]} Nh7 {[%emt 0:00:05]} 9. Qh5 {[%emt 0:
00:05]} O-O {[%emt 0:00:03]} 10. Nd5 {[%emt 0:00:03]} Bc5 {[%emt 0:00:03]} 11.
a3 {[%emt 0:00:04]} c6 {[%emt 0:00:02]} 12. Nc3 {[%emt 0:00:03]} b5 {[%emt 0:
00:06]} 13. Ba2 {[%emt 0:00:02]} b4 {[%emt 0:00:04]} 14. Nd1 {[%emt 0:00:04]}
bxa3 {[%emt 0:00:02]} 15. bxa3 {[%emt 0:00:01]} d6 {[%emt 0:00:07]} 16. e6 {
[%emt 0:00:02]} fxe6 {[%emt 0:00:03]} 17. Nc3 {[%emt 0:00:08]} Bd4 {[%emt 0:00:
04]} 18. Bb2 {[%emt 0:00:02]} Bxc3 {[%emt 0:00:03]} 19. Bxc3 {[%emt 0:00:01]}
Ba6 {[%emt 0:00:03]} 20. Qg4 {[%emt 0:00:04]} Ng5 {[%emt 0:00:09]} 21. Bxe6+ {
[%emt 0:00:06]} Kh8 {[%emt 0:00:06]} 22. Rfe1 {[%emt 0:00:06]} Re8 {[%emt 0:00:
10]} 23. Ba2 {[%emt 0:00:06]} Bc8 {[%emt 0:00:03]} 24. Qg3 {[%emt 0:00:03]} d5
{[%emt 0:00:08]} 25. exd5 {[%emt 0:00:03]} cxd5 {[%emt 0:00:02]} 26. Rxe8+ {
[%emt 0:00:03]} Qxe8 {[%emt 0:00:03]} 27. h4 {[%emt 0:00:03]} Ne6 {[%emt 0:00:
13]} 28. Bxd5 {[%emt 0:00:04]} Qf8 {[%emt 0:00:05]} 29. Bxa8 {[%emt 0:00:05]
TallSnazzyBall won by resignation} 1-0

[Event "Fast Chess"]
[Site "ChessKid.com"]
[Date "2020.05.14"]
[Round "1"]
[White "Horvath, Alexander"]
[Black "Georgiev, Maximilian"]
[Result "1/2-1/2"]
[ECO "C01"]
[WhiteElo "1344"]
[BlackElo "1243"]
[PlyCount "53"]
[EventDate "2020.??.??"]
[TimeControl "900"]
[WhiteClock "0:13:33"]
[BlackClock "0:12:44"]

1. e4 {[%emt 0:00:03]} e6 {[%emt 0:00:01]} 2. Nf3 {[%emt 0:00:03]} d5 {[%emt 0:
00:02]} 3. exd5 {[%emt 0:00:02]} exd5 {[%emt 0:00:01]} 4. d4 {[%emt 0:00:03]}
h6 {[%emt 0:00:03]} 5. Nc3 {[%emt 0:00:01]} Nf6 {[%emt 0:00:02]} 6. Bb5+ {
[%emt 0:00:02]} c6 {[%emt 0:00:02]} 7. Ba4 {[%emt 0:00:02]} b5 {[%emt 0:00:02]}
8. Bb3 {[%emt 0:00:03]} a5 {[%emt 0:00:02]} 9. a3 {[%emt 0:00:02]} a4 {[%emt 0:
00:02]} 10. Ba2 {[%emt 0:00:02]} Be7 {[%emt 0:00:02]} 11. Bf4 {[%emt 0:00:03]}
Nbd7 {[%emt 0:00:02]} 12. O-O {[%emt 0:00:06]} O-O {[%emt 0:00:01]} 13. Ne5 {
[%emt 0:00:07]} Nb6 {[%emt 0:00:05]} 14. Nxc6 {[%emt 0:00:09]} Qd7 {[%emt 0:00:
07]} 15. Nxe7+ {[%emt 0:00:04]} Qxe7 {[%emt 0:00:02]} 16. Re1 {[%emt 0:00:00]}
Qb7 {[%emt 0:00:05]} 17. Re5 {[%emt 0:00:07]} Ng4 {[%emt 0:00:06]} 18. Re2 {
[%emt 0:00:14]} Nf6 {[%emt 0:00:04]} 19. Qe1 {[%emt 0:00:02]} Be6 {[%emt 0:00:
03]} 20. Nxb5 {[%emt 0:00:06]} Rfd8 {[%emt 0:00:06]} 21. Nd6 {[%emt 0:00:10]}
Qc6 {[%emt 0:00:07]} 22. Rxe6 {[%emt 0:00:30]} fxe6 {[%emt 0:00:04]} 23. Qxe6+
{[%emt 0:00:02]} Kh7 {[%emt 0:00:05]} 24. Qf5+ {[%emt 0:00:09]} Kg8 {[%emt 0:
00:10]} 25. Qe6+ {[%emt 0:00:03]} Kh7 {[%emt 0:00:01]} 26. Qf5+ {[%emt 0:00:02]
} Kg8 {[%emt 0:00:01]} 27. Qe6+ {[%emt 0:00:01] Game drawn by repetition}
1/2-1/2

[Event "Fast Chess"]
[Site "ChessKid.com"]
[Date "2020.05.14"]
[Round "1"]
[White "Rosenkranz, Benjamin"]
[Black "Halimi, Dorian"]
[Result "0-1"]
[ECO "C60"]
[WhiteElo "1152"]
[BlackElo "1271"]
[PlyCount "98"]
[EventDate "2020.??.??"]
[TimeControl "900"]
[WhiteClock "0:12:03"]
[BlackClock "0:10:55"]

1. e4 {[%emt 0:00:01]} e5 {[%emt 0:00:02]} 2. Nf3 {[%emt 0:00:01]} Nc6 {
[%emt 0:00:02]} 3. Bb5 {[%emt 0:00:03]} Qf6 {[%emt 0:00:11]} 4. Nc3 {[%emt 0:
00:08]} Nd4 {[%emt 0:00:04]} 5. O-O {[%emt 0:00:12]} Nxb5 {[%emt 0:00:14]} 6.
Nxb5 {[%emt 0:00:04]} Bd6 {[%emt 0:00:04]} 7. Nxd6+ {[%emt 0:00:15]} Qxd6 {
[%emt 0:00:03]} 8. d3 {[%emt 0:00:03]} Qf6 {[%emt 0:00:03]} 9. Bg5 {[%emt 0:00:
09]} Qe6 {[%emt 0:00:06]} 10. Be3 {[%emt 0:00:03]} d6 {[%emt 0:00:01]} 11. Bd2
{[%emt 0:00:06]} Qg6 {[%emt 0:00:01]} 12. Bb4 {[%emt 0:00:12]} Bh3 {[%emt 0:00:
03]} 13. g3 {[%emt 0:00:19]} Bxf1 {[%emt 0:00:01]} 14. Kxf1 {[%emt 0:00:02]}
O-O-O {[%emt 0:00:04]} 15. Nh4 {[%emt 0:00:06]} Qf6 {[%emt 0:00:07]} 16. b3 {
[%emt 0:00:16]} c5 {[%emt 0:00:01]} 17. Ba5 {[%emt 0:00:04]} b6 {[%emt 0:00:02]
} 18. Qg4+ {[%emt 0:00:08]} Rd7 {[%emt 0:00:13]} 19. Bd2 {[%emt 0:00:07]} Nh6 {
[%emt 0:00:02]} 20. Bxh6 {[%emt 0:00:04]} Qxh6 {[%emt 0:00:03]} 21. Nf5 {
[%emt 0:00:03]} Qd2 {[%emt 0:00:10]} 22. Qxg7 {[%emt 0:00:08]} Rdd8 {[%emt 0:
00:11]} 23. Qxf7 {[%emt 0:00:04]} Rdf8 {[%emt 0:00:07]} 24. Qe6+ {[%emt 0:00:
03]} Kb8 {[%emt 0:00:04]} 25. Kg2 {[%emt 0:00:04]} Qxc2 {[%emt 0:00:01]} 26.
Ng7 {[%emt 0:00:07]} Qxd3 {[%emt 0:00:08]} 27. Qd7 {[%emt 0:00:11]} Rd8 {
[%emt 0:00:04]} 28. Qc6 {[%emt 0:00:03]} Qc3 {[%emt 0:00:04]} 29. Ne6 {[%emt 0:
00:06]} Qxa1 {[%emt 0:00:05]} 30. Qc7+ {[%emt 0:00:03]} Ka8 {[%emt 0:00:04]}
31. Nxd8 {[%emt 0:00:05]} Rxd8 {[%emt 0:00:05]} 32. Qxd8+ {[%emt 0:00:01]} Kb7
{[%emt 0:00:01]} 33. Qxd6 {[%emt 0:00:02]} Qxa2 {[%emt 0:00:04]} 34. Qxe5 {
[%emt 0:00:03]} Qxb3 {[%emt 0:00:02]} 35. Qe7+ {[%emt 0:00:06]} Kc6 {[%emt 0:
00:02]} 36. Qxh7 {[%emt 0:00:03]} a5 {[%emt 0:00:01]} 37. e5 {[%emt 0:00:03]}
a4 {[%emt 0:00:01]} 38. Qd3 {[%emt 0:00:05]} Qxd3 {[%emt 0:00:02]} 39. e6 {
[%emt 0:00:02]} Qd6 {[%emt 0:00:03]} 40. h4 {[%emt 0:00:03]} Qxe6 {[%emt 0:00:
01]} 41. g4 {[%emt 0:00:02]} a3 {[%emt 0:00:01]} 42. f4 {[%emt 0:00:01]} Qxg4+
{[%emt 0:00:04]} 43. Kh2 {[%emt 0:00:03]} Qxh4+ {[%emt 0:00:01]} 44. Kg2 {
[%emt 0:00:00]} Qxf4 {[%emt 0:00:01]} 45. Kh3 {[%emt 0:00:02]} a2 {[%emt 0:00:
00]} 46. Kg2 {[%emt 0:00:03]} a1=Q {[%emt 0:00:01]} 47. Kh3 {[%emt 0:00:02]}
Qc3+ {[%emt 0:00:01]} 48. Kg2 {[%emt 0:00:02]} Qfd2+ {[%emt 0:00:01]} 49. Kf1 {
[%emt 0:00:03]} Qcc1# {[%emt 0:00:01] FullMagentaEclipse won by checkmate} 0-1

[Event "Fast Chess"]
[Site "ChessKid.com"]
[Date "2020.05.14"]
[Round "2"]
[White "Halimi, Dorian"]
[Black "Horvath, Alexander"]
[Result "0-1"]
[ECO "C20"]
[WhiteElo "1265"]
[BlackElo "1351"]
[PlyCount "76"]
[EventDate "2020.??.??"]
[TimeControl "900"]
[WhiteClock "0:11:37"]
[BlackClock "0:11:26"]

1. e4 {[%emt 0:00:01]} e5 {[%emt 0:00:01]} 2. Qh5 {[%emt 0:00:01]} Nc6 {
[%emt 0:00:02]} 3. Bc4 {[%emt 0:00:01]} g6 {[%emt 0:00:02]} 4. Qe2 {[%emt 0:00:
07]} Nd4 {[%emt 0:00:03]} 5. Qd3 {[%emt 0:00:01]} Bg7 {[%emt 0:00:05]} 6. Nh3 {
[%emt 0:00:05]} Nf6 {[%emt 0:00:02]} 7. Ng5 {[%emt 0:00:01]} d6 {[%emt 0:00:20]
} 8. Nxf7 {[%emt 0:00:02]} Qe7 {[%emt 0:00:11]} 9. Nxh8 {[%emt 0:00:02]} Bxh8 {
[%emt 0:00:09]} 10. Nc3 {[%emt 0:00:05]} Bd7 {[%emt 0:00:01]} 11. Nd5 {[%emt 0:
00:02]} Nxd5 {[%emt 0:00:02]} 12. Bxd5 {[%emt 0:00:02]} O-O-O {[%emt 0:00:03]}
13. c3 {[%emt 0:00:09]} Nc6 {[%emt 0:00:05]} 14. Bxc6 {[%emt 0:00:03]} Bxc6 {
[%emt 0:00:00]} 15. Kf1 {[%emt 0:00:04]} Rf8 {[%emt 0:00:02]} 16. Kg1 {[%emt 0:
00:05]} Qf7 {[%emt 0:00:03]} 17. f3 {[%emt 0:00:02]} g5 {[%emt 0:00:07]} 18. a4
{[%emt 0:00:08]} g4 {[%emt 0:00:02]} 19. b4 {[%emt 0:00:09]} gxf3 {[%emt 0:00:
04]} 20. gxf3 {[%emt 0:00:03]} Rg8+ {[%emt 0:00:09]} 21. Kf1 {[%emt 0:00:03]}
Qg6 {[%emt 0:00:02]} 22. Qe2 {[%emt 0:00:15]} a6 {[%emt 0:00:04]} 23. b5 {
[%emt 0:00:05]} axb5 {[%emt 0:00:05]} 24. a5 {[%emt 0:00:02]} b4 {[%emt 0:00:
17]} 25. cxb4 {[%emt 0:00:02]} d5 {[%emt 0:00:21]} 26. exd5 {[%emt 0:00:07]}
Bxd5 {[%emt 0:00:00]} 27. a6 {[%emt 0:00:05]} b5 {[%emt 0:00:27]} 28. a7 {
[%emt 0:00:06]} Bc4 {[%emt 0:00:05]} 29. a8=Q+ {[%emt 0:00:16]} Kd7 {[%emt 0:
00:02]} 30. Qxg8 {[%emt 0:00:01]} Qxg8 {[%emt 0:00:02]} 31. Rg1 {[%emt 0:00:19]
} Bxe2+ {[%emt 0:00:02]} 32. Kf2 {[%emt 0:00:01]} Qc4 {[%emt 0:00:06]} 33. Rb1
{[%emt 0:00:26]} Qd3 {[%emt 0:00:04]} 34. Bb2 {[%emt 0:00:09]} Qxf3+ {[%emt 0:
00:04]} 35. Ke1 {[%emt 0:00:06]} Bf6 {[%emt 0:00:04]} 36. Bc3 {[%emt 0:00:13]}
Bh4+ {[%emt 0:00:03]} 37. Rg3 {[%emt 0:00:05]} Bxg3+ {[%emt 0:00:01]} 38. hxg3
{[%emt 0:00:01]} Qf1# {[%emt 0:00:01] KeenOrangeTeeth won by checkmate} 0-1

[Event "Fast Chess"]
[Site "ChessKid.com"]
[Date "2020.05.14"]
[Round "2"]
[White "Georgiev, Maximilian"]
[Black "Rosenkranz, Benjamin"]
[Result "1-0"]
[ECO "C57"]
[WhiteElo "1249"]
[BlackElo "1146"]
[PlyCount "51"]
[EventDate "2020.??.??"]
[TimeControl "900"]
[WhiteClock "0:13:05"]
[BlackClock "0:13:32"]

1. e4 {[%emt 0:00:02]} e5 {[%emt 0:00:03]} 2. Nf3 {[%emt 0:00:01]} Nc6 {
[%emt 0:00:02]} 3. Bc4 {[%emt 0:00:01]} Nf6 {[%emt 0:00:05]} 4. Ng5 {[%emt 0:
00:01]} d5 {[%emt 0:00:03]} 5. exd5 {[%emt 0:00:05]} Nxd5 {[%emt 0:00:03]} 6.
Qf3 {[%emt 0:00:05]} Qxg5 {[%emt 0:00:12]} 7. d4 {[%emt 0:00:05]} exd4 {
[%emt 0:00:04]} 8. Bxg5 {[%emt 0:00:03]} Bc5 {[%emt 0:00:06]} 9. Qxd5 {[%emt 0:
00:05]} Be6 {[%emt 0:00:05]} 10. Qxc5 {[%emt 0:00:06]} Bxc4 {[%emt 0:00:04]}
11. Qxc4 {[%emt 0:00:01]} O-O {[%emt 0:00:02]} 12. O-O {[%emt 0:00:04]} Na5 {
[%emt 0:00:06]} 13. Qxc7 {[%emt 0:00:04]} f6 {[%emt 0:00:08]} 14. Bd2 {[%emt 0:
00:06]} b6 {[%emt 0:00:05]} 15. Bxa5 {[%emt 0:00:08]} bxa5 {[%emt 0:00:03]} 16.
Qxa5 {[%emt 0:00:01]} Rac8 {[%emt 0:00:05]} 17. Qxa7 {[%emt 0:00:03]} Rxc2 {
[%emt 0:00:03]} 18. Qxd4 {[%emt 0:00:01]} Rcc8 {[%emt 0:00:09]} 19. Nd2 {
[%emt 0:00:01]} g6 {[%emt 0:00:05]} 20. Nf3 {[%emt 0:00:02]} Kg7 {[%emt 0:00:
03]} 21. Ng5 {[%emt 0:00:05]} Rg8 {[%emt 0:00:02]} 22. Ne6+ {[%emt 0:00:04]}
Kf7 {[%emt 0:00:04]} 23. Rfe1 {[%emt 0:00:03]} Ke7 {[%emt 0:00:05]} 24. Nc5+ {
[%emt 0:00:06]} Kf7 {[%emt 0:00:04]} 25. Qd7+ {[%emt 0:00:02]} Kf8 {[%emt 0:00:
04]} 26. Ne6# {[%emt 0:00:04] TallSnazzyBall won by checkmate} 1-0

[Event "Fast Chess"]
[Site "ChessKid.com"]
[Date "2020.05.14"]
[Round "3"]
[White "Horvath, Alexander"]
[Black "Rosenkranz, Benjamin"]
[Result "1-0"]
[ECO "C20"]
[WhiteElo "1355"]
[BlackElo "1142"]
[PlyCount "67"]
[EventDate "2020.??.??"]
[TimeControl "900"]
[WhiteClock "0:11:34"]
[BlackClock "0:10:56"]

1. e4 {[%emt 0:00:02]} e5 {[%emt 0:00:02]} 2. Qh5 {[%emt 0:00:02]} Qe7 {
[%emt 0:00:12]} 3. Nc3 {[%emt 0:01:04]} Nf6 {[%emt 0:00:05]} 4. Qd1 {[%emt 0:
00:03]} Qb4 {[%emt 0:00:12]} 5. a3 {[%emt 0:00:05]} Qd4 {[%emt 0:00:07]} 6. Nf3
{[%emt 0:00:07]} Qd6 {[%emt 0:00:09]} 7. Nb5 {[%emt 0:00:04]} Qc6 {[%emt 0:00:
07]} 8. d3 {[%emt 0:00:06]} Qxb5 {[%emt 0:00:02]} 9. d4 {[%emt 0:00:01]} Qc6 {
[%emt 0:00:09]} 10. d5 {[%emt 0:00:04]} Qd6 {[%emt 0:00:04]} 11. Bd2 {[%emt 0:
00:15]} Be7 {[%emt 0:00:05]} 12. Bb4 {[%emt 0:00:02]} Qb6 {[%emt 0:00:10]} 13.
Bxe7 {[%emt 0:00:08]} Kxe7 {[%emt 0:00:03]} 14. b3 {[%emt 0:00:02]} Ng4 {
[%emt 0:00:08]} 15. Qd2 {[%emt 0:00:30]} Na6 {[%emt 0:00:15]} 16. Bxa6 {
[%emt 0:00:12]} Qxa6 {[%emt 0:00:06]} 17. Qg5+ {[%emt 0:00:02]} f6 {[%emt 0:00:
15]} 18. Qxg4 {[%emt 0:00:04]} Qa5+ {[%emt 0:00:02]} 19. Nd2 {[%emt 0:00:06]}
Qc3 {[%emt 0:00:04]} 20. Qxg7+ {[%emt 0:00:08]} Kd6 {[%emt 0:00:09]} 21. Qxh8 {
[%emt 0:00:05]} Qxa1+ {[%emt 0:00:03]} 22. Ke2 {[%emt 0:00:02]} Qxh1 {[%emt 0:
00:03]} 23. Qxf6+ {[%emt 0:00:02]} Kc5 {[%emt 0:00:05]} 24. b4+ {[%emt 0:00:01]
} Kd4 {[%emt 0:00:04]} 25. Nb3+ {[%emt 0:00:02]} Kc3 {[%emt 0:00:02]} 26. Qf3+
{[%emt 0:00:07]} Kxc2 {[%emt 0:00:04]} 27. Qd3+ {[%emt 0:00:02]} Kb2 {[%emt 0:
00:03]} 28. Kd2 {[%emt 0:00:10]} Ka2 {[%emt 0:00:03]} 29. Qc2+ {[%emt 0:00:02]}
Kxa3 {[%emt 0:00:06]} 30. Qc3 {[%emt 0:00:09]} Qxg2 {[%emt 0:00:10]} 31. Nc5+ {
[%emt 0:00:04]} Ka2 {[%emt 0:00:08]} 32. Qb3+ {[%emt 0:00:07]} Ka1 {[%emt 0:00:
03]} 33. Kc1 {[%emt 0:00:05]} Qxf2 {[%emt 0:00:06]} 34. Qb1# {[%emt 0:00:02]
KeenOrangeTeeth won by checkmate} 1-0

[Event "Fast Chess"]
[Site "ChessKid.com"]
[Date "2020.05.14"]
[Round "3"]
[White "Georgiev, Maximilian"]
[Black "Halimi, Dorian"]
[Result "1-0"]
[ECO "C50"]
[WhiteElo "1258"]
[BlackElo "1257"]
[Annotator "einzügiger Einsteller"]
[PlyCount "125"]
[EventDate "2020.??.??"]
[TimeControl "900"]
[WhiteClock "0:10:39"]
[BlackClock "0:11:52"]

1. e4 {[%emt 0:00:02]} e5 {[%emt 0:00:01]} 2. Nf3 {[%emt 0:00:01]} Nc6 {
[%emt 0:00:02]} 3. Bc4 {[%emt 0:00:01]} h6 {[%emt 0:00:00]} 4. O-O {[%emt 0:00:
02]} a6 {[%emt 0:00:01]} 5. h3 {[%emt 0:00:01]} d6 {[%emt 0:00:02]} 6. Nc3 {
[%emt 0:00:03]} Nf6 {[%emt 0:00:02]} 7. d3 {[%emt 0:00:03]} Nd4 {[%emt 0:00:04]
} 8. Nxd4 {[%emt 0:00:02]} exd4 {[%emt 0:00:02]} 9. Nd5 {[%emt 0:00:02]} Nxd5 {
[%emt 0:00:03]} 10. Bxd5 {[%emt 0:00:01]} Qf6 {[%emt 0:00:14]} 11. a3 {[%emt 0:
00:06]} Be6 {[%emt 0:00:04]} 12. Bxb7 {[%emt 0:00:03]} Rb8 {[%emt 0:00:04]} 13.
Bxa6 {[%emt 0:00:02]} Qg6 {[%emt 0:00:08]} 14. Kh2 {[%emt 0:00:09]} Be7 {
[%emt 0:00:08]} 15. Bb5+ $4 {[%emt 0:00:06]} Kf8 $4 {[%emt 0:00:09]} 16. Ba4 {
[%emt 0:00:05]} f5 {[%emt 0:00:16]} 17. exf5 {[%emt 0:00:03]} Qxf5 {[%emt 0:00:
06]} 18. Bb3 {[%emt 0:00:13]} Bxb3 {[%emt 0:00:20]} 19. cxb3 {[%emt 0:00:02]}
Bh4 {[%emt 0:00:09]} 20. a4 {[%emt 0:00:04]} Bxf2 {[%emt 0:00:03]} 21. a5 {
[%emt 0:00:08]} Ra8 {[%emt 0:00:08]} 22. a6 {[%emt 0:00:03]} Ra7 {[%emt 0:00:
04]} 23. b4 {[%emt 0:00:15]} Kf7 {[%emt 0:00:09]} 24. b5 {[%emt 0:00:03]} Rb8 {
[%emt 0:00:05]} 25. Qg4 {[%emt 0:00:09]} Bg3+ {[%emt 0:00:11]} 26. Kxg3 {
[%emt 0:00:03]} Qxf1 {[%emt 0:00:01]} 27. Qxd4 {[%emt 0:00:08]} Rba8 {[%emt 0:
00:10]} 28. b6 {[%emt 0:00:05]} cxb6 {[%emt 0:00:03]} 29. Qxb6 {[%emt 0:00:01]}
Rxa6 {[%emt 0:00:04]} 30. Rxa6 {[%emt 0:00:02]} Rxa6 {[%emt 0:00:01]} 31. Qxa6
{[%emt 0:00:02]} Qxc1 {[%emt 0:00:01]} 32. Qxd6 {[%emt 0:00:01]} Qxb2 {[%emt 0:
00:05]} 33. Qf4+ {[%emt 0:00:02]} Ke6 {[%emt 0:00:03]} 34. Kf3 {[%emt 0:00:02]}
Qc2 {[%emt 0:00:07]} 35. Qe3+ {[%emt 0:00:03]} Kf6 {[%emt 0:00:04]} 36. Qd4+ {
[%emt 0:00:02]} Kg6 {[%emt 0:00:02]} 37. Qe4+ {[%emt 0:00:04]} Kf7 {[%emt 0:00:
04]} 38. d4 {[%emt 0:00:02]} Qc3+ {[%emt 0:00:06]} 39. Qe3 {[%emt 0:00:08]}
Qc6+ {[%emt 0:00:04]} 40. Qe4 {[%emt 0:00:01]} Qf6+ {[%emt 0:00:02]} 41. Qf4 {
[%emt 0:00:03]} Qxf4+ {[%emt 0:00:03]} 42. Kxf4 {[%emt 0:00:01]} Ke6 {[%emt 0:
00:01]} 43. Ke4 {[%emt 0:00:01]} Kd6 {[%emt 0:00:02]} 44. d5 {[%emt 0:00:02]}
g5 {[%emt 0:00:03]} 45. g4 {[%emt 0:00:03]} Kd7 {[%emt 0:00:03]} 46. Ke5 {
[%emt 0:00:02]} Kd8 {[%emt 0:00:03]} 47. Ke6 {[%emt 0:00:01]} Ke8 {[%emt 0:00:
03]} 48. d6 {[%emt 0:00:03]} Kd8 {[%emt 0:00:00]} 49. d7 {[%emt 0:00:01]} Kc7 {
[%emt 0:00:02]} 50. Ke7 {[%emt 0:00:01]} Kc6 {[%emt 0:00:09]} 51. d8=Q {
[%emt 0:00:01]} Kc5 {[%emt 0:00:02]} 52. Ke6 {[%emt 0:00:02]} h5 {[%emt 0:00:
05]} 53. gxh5 {[%emt 0:00:02]} g4 {[%emt 0:00:01]} 54. hxg4 {[%emt 0:00:02]}
Kc4 {[%emt 0:00:02]} 55. Ke5 {[%emt 0:00:01]} Kb5 {[%emt 0:00:00]} 56. Qc8 {
[%emt 0:00:02]} Kb4 {[%emt 0:00:02]} 57. Kd5 {[%emt 0:00:02]} Kb5 {[%emt 0:00:
01]} 58. Qb8+ {[%emt 0:00:01]} Ka4 {[%emt 0:00:02]} 59. Kc5 {[%emt 0:00:02]}
Ka3 {[%emt 0:00:02]} 60. Kc4 {[%emt 0:00:02]} Ka2 {[%emt 0:00:02]} 61. Kc3 {
[%emt 0:00:01]} Ka1 {[%emt 0:00:01]} 62. Kc2 {[%emt 0:00:01]} Ka2 {[%emt 0:00:
01]} 63. Qb2# {[%emt 0:00:01] TallSnazzyBall won by checkmate} 1-0

[Event "Fast Chess"]
[Site "ChessKid.com"]
[Date "2020.05.15"]
[Round "1"]
[White "Li, Tobias"]
[Black "Georgiev, Maximilian"]
[Result "1/2-1/2"]
[ECO "C00"]
[WhiteElo "1386"]
[BlackElo "1302"]
[Annotator "Endspiel wirklich remis?"]
[PlyCount "123"]
[EventDate "2020.??.??"]
[TimeControl "300+10"]
[WhiteClock "0:02:48"]
[BlackClock "0:01:42"]

1. e4 {[%emt 0:00:24]} e6 {[%emt 0:00:11]} 2. Nf3 {[%emt 0:00:11]} d5 {[%emt 0:
00:11]} 3. exd5 {[%emt 0:00:11]} exd5 {[%emt 0:00:10]} 4. Qe2+ {[%emt 0:00:10]}
Be7 {[%emt 0:00:11]} 5. Nc3 {[%emt 0:00:10]} Nf6 {[%emt 0:00:11]} 6. Qb5+ {
[%emt 0:00:12]} Bd7 {[%emt 0:00:12]} 7. Qxb7 {[%emt 0:00:12]} Nc6 {[%emt 0:00:
12]} 8. Qb3 {[%emt 0:00:18]} d4 {[%emt 0:00:14]} 9. Nb5 {[%emt 0:00:18]} Na5 {
[%emt 0:00:16]} 10. Qd3 {[%emt 0:00:18]} Bxb5 {[%emt 0:00:16]} 11. Qxb5+ {
[%emt 0:00:14]} c6 {[%emt 0:00:11]} 12. Qd3 {[%emt 0:00:22]} c5 {[%emt 0:00:12]
} 13. c3 {[%emt 0:00:22]} dxc3 {[%emt 0:00:13]} 14. Qxd8+ {[%emt 0:00:11]} Rxd8
{[%emt 0:00:12]} 15. dxc3 {[%emt 0:00:11]} O-O {[%emt 0:00:11]} 16. Bg5 {
[%emt 0:00:16]} h6 {[%emt 0:00:11]} 17. Bh4 {[%emt 0:00:12]} Rfe8 {[%emt 0:00:
10]} 18. Be2 {[%emt 0:00:20]} Nd5 {[%emt 0:00:16]} 19. O-O {[%emt 0:00:17]}
Bxh4 {[%emt 0:00:12]} 20. Nxh4 {[%emt 0:00:13]} Rxe2 {[%emt 0:00:11]} 21. Rfd1
{[%emt 0:00:11]} Ree8 {[%emt 0:00:14]} 22. Rd2 {[%emt 0:00:17]} Nf6 {[%emt 0:
00:12]} 23. Rxd8 {[%emt 0:00:12]} Rxd8 {[%emt 0:00:10]} 24. Re1 {[%emt 0:00:14]
} Nc4 {[%emt 0:00:12]} 25. b3 {[%emt 0:00:12]} Nb2 {[%emt 0:00:13]} 26. Rb1 {
[%emt 0:00:16]} a5 {[%emt 0:00:11]} 27. h3 {[%emt 0:00:12]} Nd3 {[%emt 0:00:13]
} 28. Rd1 {[%emt 0:00:10]} Rd7 {[%emt 0:00:21]} 29. Nf3 {[%emt 0:00:12]} c4 {
[%emt 0:00:23]} 30. bxc4 {[%emt 0:00:18]} Nc5 {[%emt 0:00:10]} 31. Rxd7 {
[%emt 0:00:13]} Ncxd7 {[%emt 0:00:11]} 32. Kf1 {[%emt 0:00:11]} Ne4 {[%emt 0:
00:11]} 33. Ke2 {[%emt 0:00:16]} Nxc3+ {[%emt 0:00:12]} 34. Kd3 {[%emt 0:00:12]
} Nxa2 {[%emt 0:00:10]} 35. Nd4 {[%emt 0:00:13]} Nb4+ {[%emt 0:00:13]} 36. Kc3
{[%emt 0:00:11]} Na6 {[%emt 0:00:12]} 37. Nb5 {[%emt 0:00:13]} Ndc5 {[%emt 0:
00:13]} 38. f4 {[%emt 0:00:18]} g5 {[%emt 0:00:13]} 39. fxg5 {[%emt 0:00:11]}
hxg5 {[%emt 0:00:11]} 40. Kd4 {[%emt 0:00:16]} Kh7 {[%emt 0:00:16]} 41. Nc3 {
[%emt 0:00:12]} Kg6 {[%emt 0:00:14]} 42. Nb5 {[%emt 0:00:13]} Kf5 {[%emt 0:00:
11]} 43. Ke3 {[%emt 0:00:11]} g4 {[%emt 0:00:14]} 44. hxg4+ {[%emt 0:00:11]}
Kxg4 {[%emt 0:00:10]} 45. Kf2 {[%emt 0:00:09]} f5 {[%emt 0:00:10]} 46. g3 {
[%emt 0:00:11]} f4 {[%emt 0:00:11]} 47. gxf4 {[%emt 0:00:12]} Kxf4 {[%emt 0:00:
10]} 48. Ke2 {[%emt 0:00:09]} Ke4 {[%emt 0:00:10]} 49. Kd2 {[%emt 0:00:10]} Ke5
{[%emt 0:00:12]} 50. Kc3 {[%emt 0:00:12]} Ke6 {[%emt 0:00:11]} 51. Kb2 {
[%emt 0:00:12]} Kd7 {[%emt 0:00:10]} 52. Kc3 {[%emt 0:00:10]} Kc6 {[%emt 0:00:
10]} 53. Kd4 {[%emt 0:00:11]} Nb3+ {[%emt 0:00:14]} 54. Kc3 {[%emt 0:00:10]}
Nbc5 {[%emt 0:00:11]} 55. Kd4 {[%emt 0:00:12]} Ne6+ {[%emt 0:00:10]} 56. Kc3 {
[%emt 0:00:10]} Nac5 {[%emt 0:00:11]} 57. Na7+ {[%emt 0:00:17]} Kb6 {[%emt 0:
00:13]} 58. Nb5 {[%emt 0:00:11]} Ne4+ {[%emt 0:00:14]} 59. Kd3 {[%emt 0:00:13]}
N4c5+ {[%emt 0:00:11]} 60. Kc3 {[%emt 0:00:10]} Nf4 {[%emt 0:00:11]} 61. Kd4 {
[%emt 0:00:15]} Nfe6+ {[%emt 0:00:11]} 62. Kc3 {[%emt 0:00:11] Game drawn by
repetition} 1/2-1/2

[Event "Fast Chess"]
[Site "ChessKid.com"]
[Date "2020.05.15"]
[Round "1"]
[White "Halimi, Dorian"]
[Black "Sasse, Gabriel"]
[Result "1-0"]
[ECO "C50"]
[WhiteElo "1285"]
[BlackElo "1351"]
[PlyCount "27"]
[EventDate "2020.??.??"]
[TimeControl "300+10"]
[WhiteClock "0:04:50"]
[BlackClock "0:04:10"]

1. e4 {[%emt 0:00:11]} e5 {[%emt 0:00:10]} 2. Nf3 {[%emt 0:00:15]} Nc6 {
[%emt 0:00:10]} 3. Bc4 {[%emt 0:00:16]} Bc5 {[%emt 0:00:10]} 4. d3 {[%emt 0:00:
20]} h6 {[%emt 0:00:12]} 5. Nc3 {[%emt 0:00:14]} Nf6 {[%emt 0:00:10]} 6. Nd5 {
[%emt 0:00:12]} Ng4 {[%emt 0:00:14]} 7. O-O {[%emt 0:00:17]} Nxf2 {[%emt 0:00:
10]} 8. Rxf2 {[%emt 0:00:12]} Bxf2+ {[%emt 0:00:10]} 9. Kxf2 {[%emt 0:00:10]}
Nd4 {[%emt 0:00:10]} 10. Be3 {[%emt 0:00:14]} Nxf3 {[%emt 0:00:12]} 11. Qxf3 {
[%emt 0:00:12]} Qh4+ {[%emt 0:00:12]} 12. g3 {[%emt 0:00:11]} Qxh2+ {[%emt 0:
00:10]} 13. Ke1 {[%emt 0:00:13]} Qg1+ {[%emt 0:00:10]} 14. Bxg1 {[%emt 0:00:12]
FullMagentaEclipse won by resignation} 1-0